lending/lending_fUSD_20250323
["ID","MTS","AMOUNT","RATE_DAILY","PERIOD"]
[356571891,1742695837904,-888.22,0.00011981,2]
[356571892,1742695837913,-162375.06636523,0.00012,2]
[356571893,1742695837924,-1160.92629857,0.00012,2]
[356571894,1742695837935,-5799.06923783,0.00012,2]
[356571895,1742695837986,-419.229999,0.00012,2]
[356571896,1742695838040,-22226.92226721,0.00012,2]
[356571898,1742695840076,-155.9888447,0.000119,2]
[356571899,1742695840086,-4317520.83262248,0.00012,2]
[356571900,1742695840094,-325762.3350501,0.00012,2]
[356571901,1742695840268,-1000.25641266,0.00012,2]
[356571902,1742695840279,-2976.20822404,0.00012,2]
[356571903,1742695840290,-3583.06796825,0.00012,2]
[356571904,1742695840342,-435.38038272,0.00012,2]
[356571905,1742695840397,-1306.27593292,0.00012,2]
[356572059,1742695846029,-831.45622295,0.00012,2]
[356572060,1742695846041,-784.9815,0.00012,2]
[356572061,1742695846053,-1414.157248,0.00012,2]
[356572062,1742695846064,-578.3824,0.00012,2]
[356572063,1742695846076,-903.7147203,0.00012,2]
[356572064,1742695846087,-472.95900005,0.00012,2]
[356572065,1742695846099,-778.804,0.00012,2]
[356572066,1742695846110,-12738.6765,0.00012,2]
[356572067,1742695846122,-30254.16451058,0.00012,2]
[356572068,1742695846240,-4727.69395376,0.00012,2]
[356572072,1742695977385,-200.0,0.00011561,2]
[356572073,1742695977407,-100.0,0.00011582,2]
[356572080,1742696046740,-168.48,0.00011577,2]
[356572081,1742696046762,-24.8496046,0.00011582,2]
[356572083,1742696054631,-181.19713606,0.00011524,2]
[356572084,1742696132557,-179.87709353,0.00011524,2]
[356572085,1742696185348,-150.0,0.00011157,2]
[356572087,1742696252181,-50.01,0.00011157,2]
[356572088,1742696252202,-406.83740466,0.00011233,2]
[356572089,1742696272949,-151.6906,0.00011144,2]
[356572090,1742696300781,1625.2,9.226e-05,2]
[356572091,1742696301846,-244.78187335,0.00011144,2]
[356572092,1742696333817,-257.51355892,0.00011144,2]
[356572098,1742696406058,-293.28535622,0.00011143,2]
[356572102,1742696451253,-150.0,0.00011044,2]
[356572103,1742696461930,-5.00721158,0.00011044,2]
[356572104,1742696461954,-292.5542481,0.00011143,2]
[356572105,1742696500197,395.42873181,0.00017,30]
[356572106,1742696523162,-202.43854032,0.00011143,2]
[356572107,1742696543933,-250.00582104,0.00011056,2]
[356572110,1742696556381,-168.48,0.00011036,2]
[356572116,1742696712688,167.48535741,0.00031794,30]
[356572117,1742696712717,176.48320948,0.00031794,91]
[356572118,1742696719658,186.24294755,0.00031794,120]
[356572119,1742696728860,232.49059088,0.00031794,30]
[356572124,1742696780027,-81.52,0.00011036,2]
[356572125,1742696780050,-75.94554344,0.00011044,2]
[356572130,1742696844058,150.0,0.00010963,7]
[356572138,1742696853154,257.39518041,0.00031794,120]
[356572139,1742696870745,258.68897613,0.00031794,120]
[356572141,1742696909339,154.00002524,0.00031794,30]
[356572142,1742696915206,226.54762843,0.00031794,120]
[356572143,1742696919160,343.34602315,0.00031794,120]
[356572233,1742697023866,-174.05445656,0.0001088,2]
[356572243,1742697032241,-556.26670477,0.0001088,2]
[356572244,1742697032253,-1122.09883867,0.0001088,2]
[356572245,1742697032262,-150.0,0.00011042,2]
[356572246,1742697032272,-174.0602776,0.00011044,2]
[356572247,1742697032282,-150.0,0.00011046,2]
[356572248,1742697032292,-5.98417896,0.00011056,2]
[356572249,1742697032302,-746.08446748,0.00011144,2]
[356572250,1742697032321,-1417.10990982,0.00011144,2]
[356572251,1742697032341,-21082.81959043,0.00011144,2]
[356572252,1742697032351,-454.99,0.00011144,2]
[356572253,1742697032360,-2228.31259534,0.00011233,2]
[356572254,1742697032370,-1625.2,0.0001149,2]
[356572255,1742697032379,-1166.0,0.00011683,2]
[356572256,1742697032389,-150.0,0.00011699,2]
[356572257,1742697032398,-1204.75,0.000117,2]
[356572258,1742697032407,-455.4,0.000117,2]
[356572259,1742697032417,-156.91,0.000117,2]
[356572260,1742697032427,-455.4,0.000117,2]
[356572261,1742697032436,-419.44,0.000117,2]
[356572262,1742697032445,-452.83,0.000117,2]
[356572263,1742697032455,-800.22,0.000117,2]
[356572264,1742697032464,-500.0,0.00011794,2]
[356572265,1742697032473,-500.0,0.00011794,2]
[356572266,1742697032482,-331.485,0.00011794,2]
[356572267,1742697032491,-49461.40393261,0.00011795,2]
[356572268,1742697032500,-159.71337355,0.000118,2]
[356572269,1742697032510,-151.6906,0.000118,2]
[356572270,1742697032519,-159.7133735,0.00011815,2]
[356572271,1742697032529,-159.7133735,0.0001183,2]
[356572272,1742697032538,-159.7133735,0.00011845,2]
[356572273,1742697032551,-159.7133735,0.00011861,2]
[356572275,1742697032560,-159.7133735,0.00011876,2]
[356572276,1742697032569,-159.7133735,0.00011891,2]
[356572277,1742697032579,-1000.0,0.000119,2]
[356572278,1742697032589,-42451.78968845,0.000119,2]
[356572279,1742697032611,-1302.66754437,0.000119,2]
[356572280,1742697032623,-3861.46843775,0.000119,2]
[356572281,1742697032635,-10672.19072931,0.000119,2]
[356572282,1742697032647,-536.83568415,0.000119,2]
[356572285,1742697038068,-844.41899639,0.000119,2]
[356572286,1742697038176,-589.97551441,0.000119,2]
[356572287,1742697038231,-24375.75429604,0.000119,2]
[356572399,1742697040386,-498.53770913,0.000119,2]
[356572401,1742697040396,-377.7661,0.000119,2]
[356572403,1742697040405,-213.76154762,0.000119,2]
[356572405,1742697040415,-245.7326,0.000119,2]
[356572407,1742697040424,-356.3409,0.000119,2]
[356572409,1742697040433,-803.6210272,0.000119,2]
[356572411,1742697040442,-803.62102712,0.00011901,2]
[356572413,1742697040452,-803.62102712,0.00011901,2]
[356572415,1742697040463,-803.62102712,0.00011902,2]
[356572417,1742697040472,-584.705,0.00011902,2]
[356572419,1742697040482,-584.705,0.00011902,2]
[356572421,1742697040491,-584.705,0.00011902,2]
[356572423,1742697040500,-584.705,0.00011902,2]
[356572425,1742697040510,-584.705,0.00011902,2]
[356572427,1742697040520,-584.705,0.00011902,2]
[356572429,1742697040529,-584.705,0.00011902,2]
[356572431,1742697040538,-584.705,0.00011902,2]
[356572433,1742697040548,-584.705,0.00011902,2]
[356572435,1742697040556,-584.705,0.00011902,2]
[356572437,1742697040566,-803.62102712,0.00011903,2]
[356572439,1742697040575,-803.62102712,0.00011903,2]
[356572441,1742697040584,-803.62102712,0.00011904,2]
[356572442,1742697040593,-803.62102712,0.00011905,2]
[356572444,1742697040602,-803.62102712,0.00011905,2]
[356572446,1742697040611,-159.7133735,0.00011906,2]
[356572448,1742697040620,-803.62102712,0.00011906,2]
[356572450,1742697040630,-1000.0,0.00011965,2]
[356572452,1742697040639,-1253.0,0.00011973,2]
[356572454,1742697040649,-500.45832774,0.00011973,2]
[356572456,1742697040658,-7098.9931423,0.00011998,2]
[356572458,1742697040667,-562.4737258,0.00011998,2]
[356572460,1742697040676,-6477.91372997,0.00011999,2]
[356572462,1742697040686,-3030079.03198783,0.00012,2]
[356572464,1742697040695,-536413.305085,0.00012,2]
[356572466,1742697040704,-1888.0,0.00012,2]
[356572468,1742697040714,-257.48141198,0.00012,2]
[356572470,1742697040723,-1042017.39776043,0.00012,2]
[356572472,1742697040735,-1753.9976248,0.00012,2]
[356572702,1742697043240,-797.70304762,0.00012,2]
[356572768,1742697043861,-519.84831299,0.00012,2]
[356572771,1742697043872,-23973.95721219,0.00012,2]
[356572796,1742697046099,-330517.50700224,0.00012,2]
[356572797,1742697046205,-537.30590613,0.00012,2]
[356572798,1742697046263,-318.8630016,0.00012,2]
[356572799,1742697046275,-25493.49491244,0.00012,2]
[356572800,1742697046286,-10471.784483,0.00012,2]
[356572803,1742697046450,-7201.90247,0.00012,2]
[356572806,1742697318732,1462.68,0.0001035,2]
[356572807,1742697413170,-166.23,0.00011853,2]
[356572808,1742697498910,833.76034687,0.00031855,120]
[356572809,1742697510883,-171.54807367,0.0001176,2]
[356572811,1742697562060,2078.47945929,0.00031855,120]
[356572812,1742697665254,1390.11372204,0.00031855,30]
[356572814,1742697775380,1973.32642474,0.00031855,120]
[356572815,1742697904766,150.0,0.00011867,7]
[356572986,1742698232246,-93.63992633,0.0001176,2]
[356572987,1742698232255,-150.0,0.0001178,2]
[356572988,1742698232264,-169.57201296,0.000118,2]
[356572989,1742698232298,-628.42,0.000118,2]
[356572990,1742698232309,-235.1393226,0.000118,2]
[356572991,1742698232319,-150.0,0.00011857,2]
[356572992,1742698232327,-200.0,0.00011861,2]
[356572993,1742698232336,-1131.22,0.00011891,2]
[356572994,1742698232345,-150.0,0.00011899,2]
[356572995,1742698232355,-300.0,0.00011899,2]
[356572996,1742698232363,-42.61252173,0.000119,2]
[356572997,1742698232374,-400.67277827,0.000119,2]
[356572998,1742698232383,-245.7326,0.000119,2]
[356572999,1742698232392,-291.09015933,0.000119,2]
[356573000,1742698232401,-406.83860529,0.000119,2]
[356573001,1742698232412,-447.46047696,0.000119,2]
[356573002,1742698232423,-1301.36397506,0.000119,2]
[356573003,1742698232434,-303.92289458,0.000119,2]
[356573004,1742698232443,-646.34256736,0.000119,2]
[356573005,1742698232454,-132.43248325,0.000119,2]
[356573006,1742698232463,-1134.16927582,0.000119,2]
[356573007,1742698232474,-6902.04099546,0.000119,2]
[356573008,1742698232483,-967.54353088,0.000119,2]
[356573009,1742698232492,-227.49,0.00011967,2]
[356573010,1742698232501,-1253.0,0.00011973,2]
[356573011,1742698232510,-500.45832774,0.00011973,2]
[356573012,1742698232520,-161.37257719,0.00011973,2]
[356573013,1742698232529,-4983.1449601,0.00011996,2]
[356573014,1742698232538,-562.4737258,0.00011996,2]
[356573015,1742698232547,-1183.1655237,0.00011996,2]
[356573016,1742698232556,-55130.21116848,0.00012,2]
[356573017,1742698232571,-83264.32757251,0.00012,2]
[356573018,1742698232582,-3056.0375105,0.00012,2]
[356573019,1742698232592,-7933.5579185,0.00012,2]
[356573020,1742698232608,-1382.9032388,0.00012,2]
[356573021,1742698232623,-4812.07374018,0.00012,2]
[356573022,1742698232639,-1139.681725,0.00012,2]
[356573023,1742698232650,-379930.12974154,0.00012,2]
[356573024,1742698232661,-3890.22791917,0.00012,2]
[356573025,1742698232673,-5622.03985906,0.00012,2]
[356573129,1742698238148,-12231.49699712,0.00012,2]
[356573130,1742698238159,-1029.578,0.00012,2]
[356573131,1742698238201,-494.13787591,0.00012,2]
[356573132,1742698238255,-6725.4616176,0.00012,2]
[356573133,1742698238311,-2125.0,0.00012,2]
[356573134,1742698238365,-614.6374616,0.00012,2]
[356573271,1742698240457,-4642406.86386345,0.00012,2]
[356573272,1742698240511,-62225.49702505,0.00012,2]
[356573273,1742698240523,-1034.6788,0.00012,2]
[356573274,1742698240535,-13196.80683764,0.00012,2]
[356573275,1742698240546,-761.8071653,0.00012,2]
[356573276,1742698240557,-1039.57365448,0.00012,2]
[356573277,1742698240570,-2467.30921759,0.00012,2]
[356573278,1742698240581,-609.5,0.00012,2]
[356573279,1742698240592,-1106.48039432,0.00012,2]
[356573280,1742698240609,-7901.67657273,0.00012,2]
[356573281,1742698240621,-1976.35736801,0.00012,2]
[356573282,1742698240632,-3150.11392817,0.00012,2]
[356573283,1742698240674,-1369.97507927,0.00012,2]
[356573284,1742698240728,-276572.46070873,0.00012,2]
[356573285,1742698240742,-13327.87519129,0.00012,2]
[356573286,1742698240754,-329.03681296,0.00012,2]
[356573287,1742698240766,-1043.01157444,0.00012,2]
[356573288,1742698240778,-47312.4961956,0.00012,2]
[356573289,1742698240794,-453931.69179707,0.00012,2]
[356573290,1742698240807,-643.47365204,0.00012,2]
[356573291,1742698240818,-2335.29685159,0.00012,2]
[356573292,1742698240829,-14351.90983459,0.00012,2]
[356573293,1742698240840,-415.405,0.00012,2]
[356573294,1742698240851,-1025.06710056,0.00012,2]
[356573295,1742698240893,-2574.53425859,0.00012,2]
[356573296,1742698240904,-5765.18510963,0.00012,2]
[356573297,1742698243350,-433.29969009,0.00012,2]
[356573298,1742698243362,-29819.45507826,0.00012,2]
[356573299,1742698243373,-383.30164025,0.00012,2]
[356573300,1742698243384,-649.83334176,0.00012,2]
[356573301,1742698243396,-2394.13040467,0.00012,2]
[356573307,1742698243898,-1301.11418651,0.00012,2]
[356573308,1742698243910,-26769.08249561,0.00012,2]
[356573309,1742698243921,-2239.10260521,0.00012,2]
[356573310,1742698243932,-3899.6,0.00012,2]
[356573311,1742698243943,-810.44369998,0.00012,2]
[356573312,1742698243955,-301.33474039,0.00012,2]
[356573313,1742698243965,-2155.7435486,0.00012,2]
[356573314,1742698243976,-838.95,0.00012,2]
[356573315,1742698243988,-21332.66844539,0.00012,2]
[356573316,1742698243999,-213678.72398223,0.00012,2]
[356573317,1742698244016,-20893.71287994,0.00012,2]
[356573318,1742698244028,-404.52029286,0.00012,2]
[356573319,1742698244039,-6062.06418301,0.00012,2]
[356573320,1742698244050,-1781.2649874,0.00012,2]
[356573321,1742698244069,-4327.4,0.00012,2]
[356573323,1742698244215,-4540.0,0.00012,2]
[356573324,1742698244226,-9306.91921004,0.00012,2]
[356573325,1742698244237,-686.0995385,0.00012,2]
[356573326,1742698246344,-1625537.59608951,0.00012,2]
[356573327,1742698246355,-257.48141198,0.00012,2]
[356573328,1742698246365,-250.0,0.00012005,2]
[356573329,1742698246374,-888.22,0.00012006,2]
[356573330,1742698246383,-23900.0,0.00012025,2]
[356573331,1742698246392,-888.22,0.00012031,2]
[356573332,1742698246401,-888.22,0.00012056,2]
[356573333,1742698246410,-888.22,0.00012082,2]
[356573334,1742698246419,-888.22,0.00012107,2]
[356573335,1742698246428,-706.30436943,0.00012119,2]
[356573336,1742698246438,-888.22,0.00012132,2]
[356573337,1742698246447,-888.22,0.00012157,2]
[356573338,1742698246456,-888.22,0.00012182,2]
[356573339,1742698246466,-787.0,0.0001219,2]
[356573340,1742698246475,-500.0,0.0001219,2]
[356573341,1742698246484,-500.0,0.0001219,2]
[356573342,1742698246493,-500.0,0.0001219,2]
[356573343,1742698246502,-500.0,0.0001219,2]
[356573344,1742698246514,-623.0,0.0001219,2]
[356573345,1742698246525,-500.0,0.0001219,2]
[356573346,1742698246534,-500.0,0.0001219,2]
[356573347,1742698246544,-500.0,0.0001219,2]
[356573348,1742698246554,-500.0,0.0001219,2]
[356573349,1742698246562,-500.0,0.0001219,2]
[356573350,1742698246572,-888.0,0.0001219,2]
[356573351,1742698246581,-584.705,0.0001219,2]
[356573352,1742698246590,-584.705,0.0001219,2]
[356573353,1742698246600,-584.705,0.0001219,2]
[356573354,1742698246615,-584.705,0.0001219,2]
[356573355,1742698246627,-584.705,0.0001219,2]
[356573356,1742698246637,-584.705,0.0001219,2]
[356573357,1742698246647,-584.705,0.0001219,2]
[356573358,1742698246656,-584.705,0.0001219,2]
[356573359,1742698246666,-584.705,0.0001219,2]
[356573360,1742698246675,-584.705,0.0001219,2]
[356573361,1742698246686,-153.94,0.00012198,2]
[356573362,1742698246695,-888.22,0.00012208,2]
[356573363,1742698246705,-153.94,0.00012223,2]
[356573364,1742698246715,-166.66,0.0001223,2]
[356573366,1742698246723,-888.22,0.00012233,2]
[356573368,1742698246732,-153.94,0.00012249,2]
[356573369,1742698246741,-888.22,0.00012258,2]
[356573370,1742698246750,-280.41,0.00012272,2]
[356573371,1742698246760,-1000.0,0.00012274,2]
[356573372,1742698246769,-153.94,0.00012275,2]
[356573373,1742698246779,-443.16016182,0.00012275,2]
[356573374,1742698246789,-888.22,0.00012283,2]
[356573375,1742698246798,-153.94,0.000123,2]
[356573376,1742698246807,-888.22,0.00012308,2]
[356573377,1742698246816,-307.99,0.00012323,2]
[356573378,1742698246825,-153.94,0.00012326,2]
[356573379,1742698246834,-888.22,0.00012333,2]
[356573380,1742698246843,-167.13,0.00012339,2]
[356573381,1742698246852,-153.94,0.00012352,2]
[356573382,1742698246862,-888.22,0.00012359,2]
[356573383,1742698246871,-153.94,0.00012377,2]
[356573384,1742698246880,-888.22,0.00012384,2]
[356573385,1742698246889,-153.94,0.00012403,2]
[356573386,1742698246899,-888.22,0.00012409,2]
[356573387,1742698246907,-153.94,0.00012429,2]
[356573388,1742698246917,-888.22,0.00012434,2]
[356573389,1742698246928,-153.94,0.00012454,2]
[356573390,1742698246939,-153.94,0.0001248,2]
[356573391,1742698246949,-295.57806208,0.000125,2]
[356573392,1742698246961,-153.94,0.00012506,2]
[356573393,1742698246971,-153.94,0.00012531,2]
[356573394,1742698246981,-153.94,0.00012557,2]
[356573395,1742698246990,-153.94,0.00012583,2]
[356573396,1742698246999,-167.91,0.00012607,2]
[356573397,1742698247008,-153.94,0.00012608,2]
[356573398,1742698247017,-1462.68,0.00012614,2]
[356573399,1742698247026,-153.94,0.00012634,2]
[356573400,1742698247035,-153.94,0.0001266,2]
[356573401,1742698247045,-153.94,0.00012685,2]
[356573402,1742698247054,-166.66,0.00012734,2]
[356573403,1742698247063,-9713.24971465,0.00012742,2]
[356573404,1742698247072,-250.0,0.00012914,2]
[356573405,1742698247081,-150.0,0.00012936,2]
[356573406,1742698247090,-150.0,0.00012936,2]
[356573407,1742698247100,-500.0,0.00012986,2]
[356573408,1742698247109,-3047.78608747,0.00013,2]
[356573409,1742698247119,-4253.63499694,0.00013,2]
[356573410,1742698247128,-5136.23110818,0.0001305,2]
[356573411,1742698247137,-420.0,0.00013064,2]
[356573412,1742698247147,-166.66,0.00013239,2]
[356573413,1742698247155,-48405.58881356,0.00013368,2]
[356573414,1742698247165,-150.0,0.00013446,2]
[356573415,1742698247174,-151.52838985,0.00013446,2]
[356573416,1742698247183,-150.0,0.00013473,2]
[356573417,1742698247192,-1000.0,0.000135,2]
[356573418,1742698247201,-150.0,0.00013501,2]
[356573419,1742698247210,-150.0,0.00013528,2]
[356573420,1742698247220,-150.0,0.00013556,2]
[356573421,1742698247229,-167.13,0.00013573,2]
[356573422,1742698247238,-249.01450543,0.00013583,2]
[356573423,1742698247247,-167.91,0.00013648,2]
[356573424,1742698247257,-200.0,0.00013699,2]
[356573425,1742698247266,-150.29,0.00013699,2]
[356573426,1742698247275,-500.0,0.00013699,2]
[356573427,1742698247284,-500.0,0.00013699,2]
[356573428,1742698247293,-500.0,0.00013699,2]
[356573429,1742698247302,-500.0,0.00013699,2]
[356573430,1742698247311,-500.0,0.00013699,2]
[356573431,1742698247321,-500.0,0.00013699,2]
[356573432,1742698247330,-500.0,0.00013699,2]
[356573433,1742698247339,-500.0,0.00013699,2]
[356573434,1742698247347,-500.0,0.00013699,2]
[356573435,1742698247357,-500.0,0.00013699,2]
[356573436,1742698247367,-500.0,0.00013699,2]
[356573437,1742698247376,-500.0,0.00013699,2]
[356573438,1742698247385,-500.0,0.00013699,2]
[356573439,1742698247395,-500.0,0.00013699,2]
[356573440,1742698247404,-500.0,0.00013699,2]
[356573441,1742698247413,-500.0,0.00013699,2]
[356573442,1742698247422,-251.21892282,0.00013699,2]
[356573443,1742698247431,-500.0,0.00013699,2]
[356573444,1742698247440,-500.0,0.00013699,2]
[356573445,1742698247449,-166.66,0.00013744,2]
[356573446,1742698247458,-280.41,0.00013806,2]
[356573447,1742698247467,-1000.0,0.00013808,2]
[356573448,1742698247477,-3983.03437345,0.00014,2]
[356573449,1742698247486,-419.64018106,0.00014,2]
[356573450,1742698247495,-166.66,0.00014248,2]
[356573451,1742698247504,-154.87591924,0.00014325,2]
[356573452,1742698247513,-154.0,0.00014343,2]
[356573453,1742698247523,-9903.10015196,0.0001439,2]
[356573454,1742698247533,-500.0,0.00014493,2]
[356573455,1742698247542,-167.91,0.00014688,2]
[356573456,1742698247553,-167.13,0.00014807,2]
[356573457,1742698247562,-1462.68,0.00014878,2]
[356573458,1742698247572,-1966.95812272,0.00015,2]
[356573459,1742698247581,-7656.32610486,0.00015,2]
[356573460,1742698247590,-18206.38180704,0.00015,2]
[356573461,1742698247599,-5394.16413794,0.00015,5]
[356573462,1742698247613,-300.0,0.00015068,2]
[356573463,1742698247622,-1517.64,0.000153,2]
[356573464,1742698247631,-280.41,0.0001534,2]
[356573465,1742698247639,-1000.0,0.00015342,2]
[356573466,1742698247648,-487.54221237,0.000154,2]
[356573467,1742698247658,-16032.56813752,0.000154,2]
[356573468,1742698247667,-2046.059,0.00015948,2]
[356573469,1742698247676,-645.475,0.00015948,2]
[356573470,1742698247685,-1287.422,0.00015948,2]
[356573471,1742698247695,-1420.0,0.00015948,2]
[356573472,1742698247704,-572.0,0.00015948,2]
[356573473,1742698247713,-791.0,0.00015948,2]
[356573474,1742698247723,-1278.892,0.00015948,2]
[356573475,1742698247731,-545.032,0.00015948,2]
[356573476,1742698247740,-1437.927,0.00015948,2]
[356573477,1742698247749,-912.044,0.00015948,2]
[356573478,1742698247758,-4104.949,0.00015948,2]
[356573479,1742698247767,-151.999,0.00015948,2]
[356573480,1742698247776,-1014.0,0.00015948,2]
[356573481,1742698247785,-3958.011,0.00015948,2]
[356573482,1742698247794,-151.0,0.00015948,2]
[356573483,1742698247803,-15391.48648642,0.00016,2]
[356573484,1742698247917,-272.25,0.00016,2]
[356573485,1742698247932,-534.55999998,0.00016,2]
[356573486,1742698247950,-8385.24278734,0.00016,2]
[356573603,1742699431467,-356.3409,0.000119,2]
[356573604,1742699431477,-150.0,0.00011906,2]
[356573605,1742699431486,-150.0,0.00012677,2]
[356573606,1742699431495,-150.0,0.0001309,2]
[356573607,1742699431504,-150.29,0.00013699,2]
[356573608,1742699431513,-21.39037164,0.0001411,2]
[356573609,1742699431525,-483.60962836,0.0001411,2]
[356573610,1742699431535,-500.0,0.00014712,2]
[356573611,1742699431545,-1303.41,0.00015201,2]
[356573612,1742699431554,-250.0,0.00015724,2]
[356573613,1742699431563,-1021.0,0.000158,2]
[356573614,1742699431575,-548.01,0.00015999,2]
[356573615,1742699431584,-3303.0076568,0.00016,2]
[356573616,1742699431593,-4534.69838419,0.00016,2]
[356573617,1742699431602,-200.0,0.00016,2]
[356573618,1742699431612,-268.13272374,0.00016,2]
[356573619,1742699431622,-271.49975,0.00016,15]
[356573620,1742699431631,-406.99409627,0.00016,2]
[356573621,1742699431643,-959.40590373,0.00016,2]
[356573622,1742699431652,-1714.8012324,0.00016042,2]
[356573623,1742699431661,-468.7281048,0.00016042,2]
[356573624,1742699431669,-751.6948396,0.00016053,2]
[356573625,1742699431679,-934.7251604,0.00016053,2]
[356573626,1742699431688,-491.39,0.00016057,2]
[356573627,1742699431696,-3634.58,0.00016057,2]
[356573628,1742699431705,-417.0,0.00016069,2]
[356573629,1742699431714,-3079.8193023,0.0001607,2]
[356573630,1742699431722,-200.0,0.00016086,2]
[356573631,1742699431731,-3123.55,0.00016179,2]
[356573632,1742699431740,-200.0,0.00016201,2]
[356573633,1742699431749,-1665.85,0.00016201,2]
[356573634,1742699431758,-150.0,0.00016286,7]
[356573635,1742699431768,-200.0,0.0001634,2]
[356573636,1742699431777,-165.778,0.00016348,2]
[356573637,1742699431787,-200.0,0.00016348,2]
[356573638,1742699431796,-291.972,0.00016348,2]
[356573639,1742699431805,-250.0,0.00016348,2]
[356573640,1742699431814,-173.708,0.00016348,2]
[356573641,1742699431823,-572.0,0.00016348,2]
[356573642,1742699431833,-822.574,0.00016348,2]
[356573643,1742699431843,-3941.0,0.00016348,2]
[356573644,1742699431852,-151.0,0.00016348,2]
[356573645,1742699431861,-1014.0,0.00016348,2]
[356573646,1742699431871,-250.0,0.00016396,2]
[356573647,1742699431881,-5751.72,0.00016403,2]
[356573648,1742699431890,-1149.62,0.00016412,2]
[356573649,1742699431899,-7082.76999322,0.00016465,2]
[356573650,1742699431908,-2040.0,0.00016475,2]
[356573651,1742699431917,-500.0,0.00016532,2]
[356573652,1742699431927,-472.35765809,0.00016532,2]
[356573655,1742699432075,-13181.91,0.00016533,2]
[356573656,1742699432085,-150.0,0.00016548,2]
[356573657,1742699432095,-205.38,0.00016631,2]
[356573658,1742699432109,-500.0,0.00016631,2]
[356573659,1742699432119,-1662.33,0.0001668,2]
[356573660,1742699432128,-802.4,0.00016728,2]
[356573661,1742699432138,-1727.9,0.00016728,2]
[356573662,1742699432150,-179.35,0.00016789,2]
[356573663,1742699432160,-23900.0,0.00016803,2]
[356573664,1742699432170,-185.78,0.0001686,2]
[356573665,1742699432180,-280.41,0.00016874,2]
[356573666,1742699432190,-974.78,0.00016902,2]
[356573667,1742699432199,-1181.76,0.00016902,2]
[356573668,1742699432208,-200.0,0.00016918,2]
[356573669,1742699432218,-2000.0,0.00016934,2]
[356573670,1742699432228,-166.04,0.00017039,2]
[356573671,1742699432237,-2698.81,0.00017042,2]
[356573672,1742699432246,-3578.67,0.00017096,2]
[356573673,1742699432255,-212.151,0.00017096,2]
[356573674,1742699432265,-1000.0,0.00017115,2]
[356573675,1742699432275,-620.88,0.0001713,2]
[356573676,1742699432283,-620.88,0.00017166,2]
[356573677,1742699432292,-620.88,0.00017202,2]
[356573678,1742699432302,-620.88,0.00017238,2]
[356573679,1742699432311,-1500.0,0.00017264,2]
[356573680,1742699432320,-620.88,0.00017274,2]
[356573681,1742699432329,-187.52,0.00017278,2]
[356573682,1742699432338,-620.88,0.0001731,2]
[356573683,1742699432347,-620.88,0.00017346,2]
[356573684,1742699432356,-298.0,0.0001737,2]
[356573685,1742699432365,-620.88,0.00017382,2]
[356573686,1742699432375,-300.0,0.00017394,2]
[356573687,1742699432383,-620.88,0.00017419,2]
[356573688,1742699432392,-620.88,0.00017455,2]
[356573689,1742699432401,-1303.41,0.00017465,2]
[356573690,1742699432410,-620.88,0.00017491,2]
[356573691,1742699432419,-620.88,0.00017527,2]
[356573692,1742699432428,-620.88,0.00017563,2]
[356573693,1742699432436,-620.88,0.00017599,2]
[356573694,1742699432445,-620.88,0.00017635,2]
[356573695,1742699432454,-620.88,0.00017671,2]